Cogmind - Beta 15 @@@ ROGUE MODE // 2025.05.08 @ 15:59:04 // Halloween2019/Abominations Player: Minty Result: Destroyed by Lesser Abomination with Etherial Claws Performance ------------- Evolutions (1) 500 Regions Visited (2) 400 Robots Destroyed (26) 130 Value Destroyed (1457) 1457 Prototype IDs (1) 20 Alien Tech Used (0) 0 Bonus (0) 0 TOTAL SCORE: 2507 Bonus ------- None Cogmind --------- Core Integrity 0/400 Matter 277/300 Energy 250/250 System Corruption 13% Temperature Cool (24) Movement Rolling (95) Ox1 Location -9/Materials Parts ------- > --- POWER (1) -------- Ion Engine > --- PROPULSION (2) --- Wheel > --- UTILITY (3) ------ Small Storage Unit > --- WEAPON (3) ------- Small Laser > --- INVENTORY (8) ---- Light Ion Engine Terrain Scan Processor Salvage Targeting Computer Hacking Suite Peak State ------------ > --- POWER ------------ Ion Engine > --- PROPULSION ------- Wheel Wheel > --- UTILITY ---------- Small Storage Unit Salvage Targeting Computer Salvage Targeting Computer > --- WEAPON ----------- Autogun Improved Assault Rifle Improved Assault Rifle > --- INVENTORY -------- Ion Engine Light Ion Engine Terrain Scan Processor Salvage Targeting Computer Hacking Suite Autogun [Rating: 17] Favorites ----------- Power Ion Engine Engine Ion Engine Propulsion Wheel Treads Light Treads Leg Aluminum Leg Wheel Wheel Utility Salvage Targeting Computer Storage Small Storage Unit Processor Salvage Targeting Computer Protection Medium Armor Plating Weapon Autogun Energy Gun Small Laser Ballistic Gun Autogun Build | -11 -10 -9 ------- Run | Yrd Mat Mat Slots Evolved 2 | . . 2 Power . | . . . Propulsion . | . . . Utility 1 | . . 1 Weapon 1 | . . 1 Parts Attached 17 | . 5 12 Power 1 | . . 1 Engine 1 | . . 1 Core . | . . . Reactor . | . . . Propulsion 4 | . 2 2 Treads 2 | . . 2 Leg . | . . . Wheel 2 | . 2 . Hover . | . . . Flight . | . . . Utility 4 | . 1 3 Device . | . . . Storage . | . . . Processor 3 | . 1 2 Hackware . | . . . Protection 1 | . . 1 Artifact . | . . . Weapon 8 | . 2 6 Energy Gun 1 | . . 1 Energy Cannon . | . . . Ballistic Gun 7 | . 2 5 Ballistic Cannon . | . . . Launcher . | . . . Special Weapon . | . . . Impact Weapon . | . . . Slashing Weapon . | . . . Piercing Weapon . | . . . Special Melee Weapon . | . . . Unidentified Prototypes 1 | . . 1 Corrupted Parts 1 | . . 1 System Corruption 2 | . . 2 Parts Lost 12 | . . 12 Power 1 | . . 1 Propulsion 3 | . . 3 Utility 1 | . . 1 Weapon 7 | . . 7 Highest Loss Streak 5 | . . 5 To Critical Strikes . | . . . Average Backups 6 | . 7 6 Power 1 | . 1 1 Propulsion 1 | . 2 1 Utility 2 | . 1 3 Weapon . | . 1 . Tool/Special . | . . . Unused Backups 12 | . 7 5 Power 3 | . 1 2 Propulsion 2 | . 2 . Utility 4 | . 1 3 Weapon 3 | . 3 . Tool/Special . | . . . Average Slot Usage (%) 94 | . 94 94 Engine 11 | . 14 11 Treads 6 | . . 8 Leg 1 | . 10 . Wheel 11 | . 17 10 Storage 11 | . 14 11 Processor 16 | . 10 17 Protection 3 | . . 3 Energy Gun 2 | . 2 1 Ballistic Gun 29 | . 24 30 Peak Build Rating 17 | . 11 17 Average Rating 14 | . 9 15 On Entrance 7 | 6 6 11 Naked Turns . | . . . Heaviest Build 26 | 14 16 26 Greatest Support 40 | 20 20 40 Greatest Overweight (x) 1 | . . 1 Average Overweight (x) . | . . . Largest Inventory Capacity 8 | . 8 8 Average Capacity 8 | . 8 8 Most Carried 8 | . 8 8 Average Carried 6 | . 7 6 Final Capacity 8 | 8 8 8 Final Carried 8 | 6 8 4 Class Distribution -------------------- 57% | Gunner 28% | Tank 13% | Mutant Dominant Class ---------------- Mutant | -10/Materials Gunner | -9/Materials Resources | -11 -10 -9 ----------- Run | Yrd Mat Mat Matter Collected 1391 | 174 16 1201 Remotely . | . . . Salvage Created 1477 | . 16 1461 Parts 129 | . 2 127 Haulers Intercepted . | . . . Recyclers Shooed . | . . . Parts Field Recycled . | . . . Retrieved Matter . | . . . Parts Self-Destructed . | . . . Prevented . | . . . Kills | -11 -10 -9 ------- Run | Yrd Mat Mat Combat Hostiles Destroyed 25 | . . 25 Guns 25 | . . 25 Classes Destroyed 4 | . 1 3 Operator 1 | . 1 . Grunt 4 | . . 4 Sentry 1 | . . 1 Abomination 20 | . . 20 Best Kill Streak 6 | . 1 6 Combat Bots Only 6 | . . 6 Max Kills in Single Turn 1 | . 1 1 Gunslinging . | . . . Exploded . | . . . Melee . | . . . Uniques/NPCs Destroyed . | . . . Combat | -11 -10 -9 -------- Run | Yrd Mat Mat Hostile Shots Fired 257 | . . 257 Missed 66 | . . 66 Hits 191 | . . 191 Melee 21 | . . 21 Projectile 170 | . . 170 Critical Strikes 4 | . . 4 Damage Taken 2832 | . . 2832 Core 413 | . . 413 Absorbed by Shields . | . . . Core Remaining (%) 100 | 100 100 . Volleys Fired 95 | . 2 93 Largest 3 | . 2 3 Hottest 86 | . 70 86 Shots Fired 278 | . 4 274 Gun 278 | . 4 274 Cannon . | . . . Launcher . | . . . Special . | . . . Kinetic 271 | . 3 268 Thermal 7 | . 1 6 Explosive . | . . . Electromagnetic . | . . . Robot Hit Streak 34 | . 2 34 Robot Miss Streak 5 | . 2 5 Penetration Max . | . . . Secondary Targets 3 | . . 3 Max Gunslinging Chain 1 | . . 1 Shots Hit Robots 196 | . 2 194 Core Hits 63 | . 2 61 Critical Kills . | . . . Critical Parts Destroyed 1 | . . 1 Critical Strikes 2 | . . 2 Destroy 2 | . . 2 Melee Attacks . | . . . Impact . | . . . Slashing . | . . . Piercing . | . . . Sneak Attacks . | . . . Combat Hostiles . | . . . Follow-up Attacks . | . . . Damage Inflicted 3059 | . 22 3037 Guns 3051 | . 22 3029 Cannons . | . . . Explosions . | . . . Melee . | . . . Ramming 8 | . . 8 Kinetic 2973 | . 10 2963 Thermal 78 | . 12 66 Explosive . | . . . Electromagnetic . | . . . Impact . | . . . Slashing . | . . . Piercing . | . . . Highest Corruption 13 | . . 13 Average Corruption 3 | . . 3 Corruption Purged . | . . . Corruption Blocked . | . . . Effects 10 | . . 10 Message Errors 3 | . . 3 Matter Fused 3 | . . 3 Heat Flow Errors 1 | . . 1 Energy Discharges 2 | . . 2 Weapon Failures 1 | . . 1 Overload Shots . | . . . Overflow Damage . | . . . Projectiles . | . . . Explosions . | . . . Melee . | . . . Knockbacks . | . . . Impact . | . . . Kinetic . | . . . Secondary . | . . . Self-Inflicted Damage 2 | . . 2 Shots . | . . . Rammed 3 | . . 3 Targets Rammed 3 | . . 3 Kicked . | . . . Crushed . | . . . Highest Temperature 238 | . 9 238 Average Temperature 70 | . 5 71 Received Heat Transfer 177 | . . 177 Siege Activations . | . . . Martial Activations . | . . . Shielding Activations . | . . . Robots Disrupted . | . . . Combat Hostiles . | . . . Robots Corrupted . | . . . Combat Hostiles . | . . . Parts Fried . | . . . Impact Corruptions . | . . . Robots Melted . | . . . Combat Hostiles . | . . . Parts Melted . | . . . Heat Transferred 65 | . 37 28 Parts Sabotaged . | . . . Parts Stolen . | . . . Parts Stripped . | . . . Power Chain Reactions . | . . . Alert | -11 -10 -9 ------- Run | Yrd Mat Mat Maximum Alert Level . | . . . Low Security (%) 100 | . 100 100 Level 1 . | . . . Level 2 . | . . . Level 3 . | . . . Level 4 . | . . . Level 5 . | . . . High Security . | . . . Max Security . | . . . Peak Influence 96 | . 5 96 Initial . | . . . Average 20 | . 1 23 Influence Increases 179 | . 10 169 Destroy 0b10 Robot/C 100 | . . 100 Destroy 0b10 Robot/NC 5 | . 5 . Destroy Leader 40 | . . 40 Successful Hack 15 | . 5 10 Destroy Structure 4 | . . 4 Lose Combat Pursuer 15 | . . 15 Influence Decreases 179 | . 10 169 Time Decay 137 | . 10 127 Lost Part 42 | . . 42 Squads Dispatched 12 | . 1 11 Investigation 5 | . 1 4 Extermination . | . . . Reinforcement 5 | . . 5 Assault 2 | . . 2 Garrison . | . . . Intercept . | . . . Searches Triggered . | . . . Construction Impeded . | . . . Haulers Reinforced . | . . . Active Scanning Responses . | . . . Cargo Convoy Interrupts . | . . . Stealth | -11 -10 -9 --------- Run | Yrd Mat Mat Distress Signals 8 | . . 8 Communications Jammed . | . . . Distress Signals . | . . . Times Spotted 34 | . 1 33 Peak Tracking Total 6 | . 1 6 Tactical Retreats 3 | . . 3 Traps | -11 -10 -9 ------- Run | Yrd Mat Mat Traps Triggered . | . . . Indirectly . | . . . Trap Hack Attempts . | . . . Triggered . | . . . Disarmed . | . . . Reprogrammed . | . . . Reused . | . . . Traps Extracted . | . . . Installed . | . . . Triggered . | . . . Machines | -11 -10 -9 ---------- Run | Yrd Mat Mat Machines Disabled . | . . . Max in Single Turn . | . . . Machines Repaired . | . . . Machines Dismantled . | . . . Machines Sabotaged . | . . . Overloaded Fab Kills . | . . . Hacking | -11 -10 -9 --------- Run | Yrd Mat Mat Machines Accessed 3 | . 1 2 Terminals 3 | . 1 2 Fabricators . | . . . Repair Stations . | . . . Recycling Units . | . . . Scanalyzers . | . . . Garrison Access . | . . . Total Hacks 8 | . 2 6 Successful 4 | . 1 3 Failed 4 | . 1 3 Catastrophic 2 | . . 2 Database Lockouts . | . . . Manual 8 | . 2 6 Terminals 8 | . 2 6 Fabricators . | . . . Repair Stations . | . . . Recycling Units . | . . . Scanalyzers . | . . . Garrison Access . | . . . Terminal Hacks 2 | . . 2 Dispatch Records 1 | . . 1 Zone Layout 1 | . . 1 Fabricator Hacks . | . . . Repair Station Hacks . | . . . Recycling Unit Hacks . | . . . Scanalyzer . | . . . Garrison Access Hacks . | . . . Unauthorized Hacks 2 | . 1 1 Terminals 2 | . 1 1 Botnet 2 | . 1 1 Fabricators . | . . . Repair Stations . | . . . Recycling Units . | . . . Scanalyzers . | . . . Garrison Access . | . . . Data Cores Recovered 1 | . 1 . Used . | . . . Hacking Detections 3 | . 1 2 Full Trace Events 2 | . . 2 Feedback Events . | . . . Feedback Blocked . | . . . Robot Schematics Acquired . | . . . Robots Built . | . . . Authchips . | . . . Time . | . . . Total Robot Build Rating . | . . . Part Schematics Acquired . | . . . Parts Built . | . . . Authchips . | . . . Time . | . . . Total Part Build Rating . | . . . Parts Repaired . | . . . Time . | . . . Parts Recycled . | . . . Recycled Matter . | . . . Retrieved Matter . | . . . Retrieved Components . | . . . Parts Scanalyzed . | . . . Part Schematics Acquired . | . . . Parts Damaged . | . . . Bothacking | -11 -10 -9 ------------ Run | Yrd Mat Mat Used RIF Installer . | . . . Robots Hacked . | . . . Non-combat . | . . . Combat . | . . . Robot Hacks Applied . | . . . Relay Couplers Released . | . . . Fabnet Peak Effective % . | . . . Robots Rewired . | . . . Allies Hacked . | . . . Hacks Repelled . | . . . Allies | -11 -10 -9 -------- Run | Yrd Mat Mat Total Allies . | . . . Largest Group . | . . . Highest-Rated Group . | . . . Highest-Rated Ally . | . . . Total Orders . | . . . Ally Attacks . | . . . Total Damage . | . . . Kills . | . . . Allies Corrupted . | . . . Allies Melted . | . . . Intel | -11 -10 -9 ------- Run | Yrd Mat Mat Active Infowar (turns) . | . . . Robot Analysis Total . | . . . Derelict Logs Recovered . | . . . Drone Launches . | . . . Drone Recoveries . | . . . Exploration | -11 -10 -9 ------------- Run | Yrd Mat Mat Turns Passed 709 | . 107 602 Spaces Moved 315 | 1 94 220 Core . | . . . Treads 68 | . . 68 Legs 18 | 1 17 . Wheels 229 | . 77 152 Hover . | . . . Flight . | . . . Fastest Speed 80 | 120 80 80 Average Speed 102 | 120 87 108 Slowest Speed 160 | 120 120 160 Overloaded Moves . | . . . Propulsion Burnouts . | . . . Robots Hopped . | . . . Potential Cave-ins . | . . . Cave-ins Triggered . | . . . Exploration Rate (%) 21 | 2 25 36 Regions Visited 2 Branch Regions . Pre-discovered Areas . | . . . Known Exits Taken . | . . . Unknown Exits Taken 2 | 1 1 . Scrap Searched . | . . . Spaces Dug . | . . . Terrain Destroyed . | . . . Melee . | . . . Projectile . | . . . AOE . | . . . Terrain Rammed . | . . . Walls Destroyed . | . . . Machines Disabled . | . . . Actions | -11 -10 -9 --------- Run | Yrd Mat Mat Total 472 | . 110 362 Wait 21 | . . 21 Move 313 | . 93 220 Hop . | . . . Pick Up 10 | . 5 5 Fast Attach 5 | . 3 2 Attach 12 | . 2 10 Detach 3 | . . 3 Swap 5 | . . 5 Drop 5 | . 5 . Fire 95 | . 2 93 Melee . | . . . Ram 1 | . . 1 Kick . | . . . Crush 2 | . . 2 Escape Stasis . | . . . Rewire . | . . . Trap . | . . . Miscellaneous . | . . . Route ------- -11/Scrapyard -10/Materials -9/Materials History --------- Turn | Location | Event 1 | -11/Scrapyard | Discovered new exit (range 0) 1 | -11/Scrapyard | Entered Materials 68 | -10/Materials | Discovered new exit (range 13) 96 | -10/Materials | Discovered new exit (range 16) 108 | -10/Materials | Entered another Materials area 108 | -9/Materials | Evolved 2 slots: Utility x1, Weapon x1 144 | -9/Materials | Discovered new exit (range 8) 431 | -9/Materials | Lost 3 parts (1n1u1w) 510 | -9/Materials | Discovered new exit (range 7) 551 | -9/Materials | Core integrity fell below 50% 636 | -9/Materials | Lost 5 parts (1p1n3w) 656 | -9/Materials | Core integrity fell below 20% 686 | -9/Materials | Build established: Gunner 705 | -9/Materials | System corruption reached 10% 710 | -9/Materials | Destroyed by Lesser Abomination with Etherial Claws Last Messages --------------- 00692_ System corrupted: Sml. Laser failed to cycle. 00695_ Lesser Abomination spits out Lgt. Treads. 00695_ Lesser Abomination absorbs Lgt. Treads. 00696_ K-01 Serf collects debris. 00697_ 98 Matter blinks away. 00697_ K-01 Serf cleans the Material Compactor. 00700_ Discarded Salvage Targeting Computer. 00702_ Lesser Abomination destroyed. 00702_ K-01 Serf destroyed. 00704_ Lesser Abomination spits out Med. Matter Pod. 00704_ Lesser Abomination absorbs Med. Matter Pod. 00705_ System corrupted: Matter fused (-5). 00705_ Zapped by an electromagnetic arc from EM Anomaly. 00705_ Lesser Abomination spits out Sml. Matter Pod. 00705_ Lesser Abomination absorbs Med. Matter Pod. 00706_ Zapped by an electromagnetic arc from EM Anomaly. 00706_ Lgt. Ion Engine springs to life within a quantum being. 00707_ Lesser Abomination absorbs Huge Storage Unit. 00707_ Autogun destroyed. 00708_ Imp. Assault Rifle destroyed. Map ----- +----------------------------------------------------+ | ???????????????????????????????????? | | ???????????????????????????????????? | | ???????????????????????????????????? | | ???????????????????????????????????? | | ???????????????????????????????????? | | ???????????????????????????????????? | | ???????????????????????????????????? | | ???????????????????????????????????? | | ???????????????????????????????????? | | ???????????????????????????????????? | | ??????????????????????????? % ?????? | | ??????????????????????????? #????? | | ??????????????????????????? "????? | | ??????????????????????????? #????? | | ??????????????????????????? #????? | | ??????????????????????????? #????? | | ??????????????????????????? #????? | | ??????????????????????????+ % #????? | | ??????????????????????????# #????? | | ??????????????????????????# #????? | | ??????????????????????????# #????? | | ??????????????????????????# #????? | | ??????????????????????????#! #????? | | ??????????????????#########! #????? | | ????????????????? """ = A #????? | | ????????????????? """""A@#= #????? | | ???????????????????""""" # % #????? | | ???????????????????""""" #=%=#????? | | ????????????##????? """ #!!!#????? | | ???????# ??? ?????% # #????? | | ???????# ?? ?????% # #????? | | ???????? ?? ???? # #???## | | ???????? ?? ????######### #?? # | | ????????? ? ?????#####??# #?? # | | ????????? ? #????# ?# % #? # | | ????????##+##/#????# ?# #? # | | ????????? [ +????# #% # # | | ?????????# #????# # # # | | ?????????# #????# / + # | | ?????????# #????# # # # | | #"######## #????######## # # | | ############# ###### | | % = % /! # #???? | | [!% ## # #???? | | # ### ## # = #???? | | ? ??# ## % # % #???? | | ? ??# #### ## # ! #???? | | ? ??#????# ##% % ## ###### | | ? ???????#+## ## ## # # | | ? ??????????# ## ## # # | +----------------------------------------------------+ Best States ------------- Heat Dissipation 28 Energy Generation 10 Energy Capacity 250 Matter Stores 300 Matter Capacity 300 Sight Range 16 Terrain Scan Density 10 Armor Coverage 225 Evasion (%) 50 Recoil Reduction 2 Salvage Targeting 2 Item Schematics ----------------- None Robot Schematics ------------------ None Fabricated ------------ Nothing Repaired ---------- Nothing Alien Tech Used ----------------- None Achievements -------------- None Challenges ------------ None Game ------ Seed MultireflexZioniteChainsword Manual? 0 Play Time 00:07:48 Cumulative 1023.7 hours Start 2025.05.08 @ 15:51:03 End 2025.05.08 @ 15:59:04 Sessions 1 Manual Loads 0 Difficulty Rogue Special Mode Halloween2019/Abominations Game No. 1256 Rogue 974 Adventurer 124 Explorer 158 Win Type - Total 44 Types 31/0/8/3/1/0/0/1/0/0 Lore% 91 Gallery% 85 Achievement% 79 Wizard Run 0 Options --------- Layout 0 ASCII 0 Keyboard 1 Movement Numpad Keybinds 0 Fullscreen 2 Font 18/X11 Map View 76x50 Zoom Use 0% Tactical HUD 1 Map Filters NONE Filters NONE Steam 1 RUN: 615d3785-cb06-4163-ad8a-e228cd4cce87